bitfinex-derivatives/quotes_BNBF0:USTF0_20251219
["timestamp","ask_amount","ask_price","bid_price","bid_amount"]
[1766174916865,1.72973604,856.93,855.13,0.7315388]
[1766174917061,1.72973604,856.93,855.14,0.7315388]
[1766174917361,1.72973604,856.91,855.15,0.7315388]
[1766174917560,1.72973604,856.91,855.16,0.7315388]
[1766174917861,1.72973604,856.91,855.17,0.7315388]
[1766174918066,1.72973604,856.91,855.18,0.7315388]
[1766174918362,1.72973604,856.88,855.19,0.7315388]
[1766174918567,1.72973604,856.88,855.2,0.7315388]
[1766174918766,1.72973604,856.88,855.21,0.7315388]
[1766174919065,1.72973604,856.88,855.22,0.7315388]
[1766174919264,1.72973604,856.88,855.23,0.7315388]
[1766174919465,1.72973604,856.86,855.24,0.7315388]
[1766174919668,1.72973604,856.86,855.25,0.7315388]
[1766174919964,1.72973604,856.86,855.26,0.7315388]
[1766174920164,1.72973604,856.83,855.27,0.7315388]
[1766174920368,1.72973604,856.77,855.28,0.7315388]
[1766174920569,1.72973604,856.77,855.29,0.7315388]
[1766174920869,1.72973604,856.73,855.3,0.7315388]
[1766174921068,1.72973604,856.73,855.14,9.79535969]
[1766174921268,1.72973604,856.73,855.15,0.73326479]
[1766174921566,1.72973604,856.73,855.16,0.73326479]
[1766174921764,1.72973604,856.73,855.17,0.73326479]
[1766174922065,1.72973604,856.73,855.18,0.73326479]
[1766174922270,1.72973604,856.72,855.19,0.73326479]
[1766174922570,1.72973604,856.72,855.2,0.73326479]
[1766174922865,1.72973604,856.72,855.21,0.73326479]
[1766174923070,1.72973604,856.72,855.22,0.73326479]
[1766174923275,1.72973604,856.72,855.23,0.73326479]
[1766174923471,0.20307116,857.32,855.24,0.73326479]
[1766174923472,1.72973604,856.71,855.24,0.73326479]
[1766174923766,1.72973604,856.71,855.25,0.73326479]
[1766174923970,0.20330309,856.35,855.26,0.73326479]
[1766174924270,0.20330309,856.35,855.27,0.73326479]
[1766174924466,0.20330309,856.35,855.28,0.73326479]
[1766174924667,0.20330309,856.35,855.29,0.73326479]
[1766174924866,0.20330309,856.35,855.3,0.73326479]
[1766174925066,0.20330309,856.35,855.31,0.73326479]
[1766174925269,0.20330309,856.35,855.32,0.73326479]
[1766174925465,0.20330309,856.35,855.33,0.73326479]
[1766174925671,0.20330309,856.35,855.14,9.79535969]
[1766174925970,0.20330309,856.35,855.15,0.73379406]
[1766174926269,0.20330309,856.35,855.16,0.73379406]
[1766174926467,0.20330309,856.35,855.17,0.73379406]
[1766174926771,0.20330309,856.35,855.18,0.73379406]
[1766174926966,0.20330309,856.35,855.19,0.73379406]
[1766174927166,0.20330309,856.35,855.2,0.73379406]
[1766174927369,0.20330309,856.35,855.21,0.73379406]
[1766174927566,0.20330309,856.35,855.22,0.73379406]
[1766174927771,0.20330309,856.35,855.23,0.73379406]
[1766174928070,0.20330309,856.35,855.24,0.73379406]
[1766174928272,0.20330309,856.35,855.25,0.73379406]
[1766174928570,0.20330309,856.35,855.26,0.73379406]
[1766174928769,0.20330309,856.35,855.27,0.73379406]
[1766174928969,0.20330309,856.35,855.28,0.73379406]
[1766174929170,0.20330309,856.35,855.29,0.73379406]
[1766174929366,0.20330309,856.35,855.3,0.73379406]
[1766174929571,0.20330309,856.35,855.31,0.73379406]
[1766174929865,0.20330309,856.35,855.32,0.73379406]
[1766174930068,0.20330309,856.35,855.33,0.73379406]
[1766174930370,0.20330309,856.35,855.34,0.73379406]
[1766174930566,0.20330309,856.35,855.35,0.73379406]
[1766174930767,0.20330309,856.35,855.14,9.79535969]
[1766174930968,0.20330309,856.35,855.15,0.73383223]
[1766174931169,0.20330309,856.35,855.16,0.73383223]
[1766174931367,0.20330309,856.35,855.17,0.73383223]
[1766174931568,0.20330309,856.35,855.18,0.73383223]
[1766174931769,0.20330309,856.35,855.19,0.73383223]
[1766174931967,0.20330309,856.35,855.2,0.73383223]
[1766174932167,0.20330309,856.35,855.21,0.73383223]
[1766174932372,0.20330309,856.35,855.22,0.73383223]
[1766174932572,0.20330309,856.35,854.9,0.86459558]
[1766174932772,0.20330309,856.35,854.91,0.7345782]
[1766174932972,0.20330309,856.35,854.92,0.7345782]
[1766174933172,0.20330309,856.35,854.93,0.7345782]
[1766174933373,0.20330309,856.35,854.94,0.7345782]
[1766174933570,0.20330309,856.35,854.95,0.7345782]
[1766174933773,0.20330309,856.35,854.96,0.7345782]
[1766174933973,0.20330309,856.35,854.97,0.7345782]
[1766174934173,0.20330309,856.35,854.98,0.7345782]
[1766174934371,0.20330309,856.35,854.99,0.7345782]
[1766174934669,0.20330309,856.35,855.0,0.7345782]
[1766174934874,0.20330309,856.35,855.01,0.7345782]
[1766174935174,0.20330309,856.35,854.74,0.86459558]
[1766174935375,0.20330309,856.35,854.75,0.73441869]
[1766174935672,0.20330309,856.35,854.76,0.73441869]
[1766174935871,0.20330309,856.35,854.77,0.73441869]
[1766174936071,0.20330309,856.35,854.78,0.73441869]
[1766174936373,0.20330309,856.35,854.74,0.86459558]
[1766174936374,0.20330309,856.35,854.79,0.73441869]
[1766174936574,0.20330309,856.35,854.8,0.73441869]
[1766174936774,0.20330309,856.35,854.81,0.73441869]
[1766174936970,0.20330309,856.35,854.82,0.73441869]
[1766174937271,0.20330309,856.35,854.83,0.73441869]
[1766174937471,0.20330309,856.35,854.84,0.73441869]
[1766174937774,0.20330309,856.35,854.85,0.73441869]
[1766174937975,0.20330309,856.35,854.86,0.73441869]
[1766174938278,0.20330309,856.35,854.87,0.73441869]
[1766174938477,0.20330309,856.35,854.88,0.73441869]
[1766174938677,0.20330309,856.35,854.89,0.73441869]
[1766174938979,0.20330309,856.35,854.9,0.73441869]
[1766174939280,1.93303913,856.35,854.91,0.73441869]
[1766174939474,1.93303913,856.35,854.92,0.73441869]
[1766174939675,1.93303913,856.35,854.93,0.73441869]
[1766174939875,1.93303913,856.35,854.94,0.73441869]
[1766174940079,1.93303913,856.35,854.95,0.73441869]
[1766174940276,1.93303913,856.35,854.96,0.73441869]
[1766174940474,1.93303913,856.35,854.97,0.73441869]
[1766174940678,1.93303913,856.35,854.98,0.73441869]
[1766174940882,1.93303913,856.35,854.99,0.73441869]
[1766174941082,1.93303913,856.35,855.0,0.73441869]
[1766174941283,0.20330309,856.35,855.01,0.73441869]
[1766174941484,0.20330309,856.35,855.02,0.73441869]
[1766174941685,0.20330309,856.35,855.03,0.73441869]
[1766174941983,0.20330309,856.35,855.04,0.73441869]
[1766174942184,0.20330309,856.35,855.05,0.73441869]
[1766174942380,0.20330309,856.35,855.06,0.73441869]
[1766174942581,0.20330309,856.35,855.07,0.73441869]
[1766174942785,0.20330309,856.35,855.08,0.73441869]
[1766174943081,0.20330309,856.35,855.09,0.73441869]
[1766174943286,0.20330309,856.35,855.1,0.73441869]
[1766174943488,0.20330309,856.35,855.11,0.73441869]
[1766174943683,0.20330309,856.35,855.12,0.73441869]
[1766174943886,0.20330309,856.35,855.13,0.73441869]
[1766174944084,0.20330309,856.35,855.14,0.73441869]
[1766174944285,0.20330309,856.35,854.87,0.86459558]
[1766174944584,0.20330309,856.35,854.88,0.73532172]
[1766174944787,0.20330309,856.35,854.89,0.73532172]
[1766174945085,0.20330309,856.35,854.9,0.73532172]
[1766174945288,0.20330309,856.35,854.91,0.73532172]
[1766174945588,0.20330309,856.35,854.92,0.73532172]
[1766174945784,0.20330309,856.35,854.93,0.73532172]
[1766174945983,0.20330309,856.35,854.94,0.73532172]
[1766174946187,0.20330309,856.35,854.95,0.73532172]
[1766174946489,0.20330309,856.35,854.96,0.73532172]
[1766174946687,0.20330309,856.35,854.97,0.73532172]
[1766174946888,0.20330309,856.35,854.98,0.73532172]
[1766174947184,0.20330309,856.35,854.99,0.73532172]
[1766174947387,0.20330309,856.35,855.0,0.73532172]
[1766174947589,0.20330309,856.35,855.01,0.73532172]
[1766174947782,0.20330309,856.35,854.87,0.86459558]
[1766174947783,0.20330309,856.35,855.02,0.73532172]
[1766174947986,0.20330309,856.35,855.03,0.73532172]
[1766174948187,0.20330309,856.35,855.04,0.73532172]
[1766174948386,0.20330309,856.35,855.05,0.73532172]
[1766174948585,0.20330309,856.35,855.06,0.73532172]
[1766174948789,0.20330309,856.35,855.07,0.73532172]
[1766174948988,0.20330309,856.35,855.08,0.73532172]
[1766174949187,0.20330309,856.35,855.09,0.73532172]
[1766174949388,0.20330309,856.35,855.1,0.73532172]
[1766174949590,0.20330309,856.35,855.11,0.73532172]
[1766174949889,0.20330309,856.35,855.12,0.73532172]
[1766174950090,0.20330309,856.35,855.13,0.73532172]
[1766174950386,1.93303913,856.35,854.83,0.86459558]
[1766174950690,1.93303913,856.35,854.84,0.73556517]
[1766174950890,1.93303913,856.35,854.85,0.73556517]
[1766174951190,1.93303913,856.35,854.86,0.73556517]
[1766174951391,1.93303913,856.35,854.87,0.73556517]
[1766174951688,1.93303913,856.35,854.88,0.73556517]
[1766174951888,1.93303913,856.35,854.83,0.86459558]
[1766174951889,1.93303913,856.35,854.89,0.73556517]
[1766174952086,1.93303913,856.35,854.9,0.73556517]
[1766174952287,1.93303913,856.35,854.91,0.73556517]
[1766174952487,1.93303913,856.35,854.92,0.73556517]
[1766174952691,1.93303913,856.35,854.93,0.73556517]
[1766174952987,1.93303913,856.35,854.94,0.73556517]
[1766174953189,1.72973604,856.34,854.95,0.73556517]
[1766174953386,1.72973604,856.34,854.96,0.73556517]
[1766174953687,1.72973604,856.34,854.97,0.73556517]
[1766174953990,1.72973604,856.34,854.98,0.73556517]
[1766174954190,1.72973604,856.34,854.99,0.73556517]
[1766174954388,1.72973604,856.34,855.0,0.73556517]
[1766174954587,1.72973604,856.34,855.01,0.73556517]
[1766174954788,1.72973604,856.34,855.02,0.73556517]
[1766174954987,1.72973604,856.34,855.03,0.73556517]
[1766174955288,1.72973604,856.33,855.04,0.73556517]
[1766174955488,1.72973604,856.33,855.05,0.73556517]
[1766174955791,1.72973604,856.33,855.06,0.73556517]
[1766174955993,1.72973604,856.33,855.07,0.73556517]
[1766174956289,1.72973604,856.34,855.08,0.73556517]
[1766174956488,1.72973604,856.33,855.09,0.73556517]
[1766174956690,1.72973604,856.33,855.1,0.73556517]
[1766174956889,1.72973604,856.33,855.11,0.73556517]
[1766174957092,1.72973604,856.33,855.12,0.73556517]
[1766174957293,1.72973604,856.33,854.85,0.86459558]
[1766174957493,1.72973604,856.33,854.86,0.73563688]
[1766174957693,1.72973604,856.34,854.87,0.73563688]
[1766174957893,1.72973604,856.34,854.88,0.73563688]
[1766174958190,1.72973604,856.34,854.89,0.73563688]
[1766174958390,1.72973604,856.34,854.9,0.73563688]
[1766174958590,1.72973604,856.32,854.91,0.73563688]
[1766174958794,1.72973604,856.32,854.92,0.73563688]
[1766174959094,1.72973604,856.32,854.93,0.73563688]
[1766174959295,1.72973604,856.32,854.94,0.73563688]
[1766174959494,1.72973604,856.32,854.95,0.73563688]
[1766174959791,1.72973604,856.32,854.96,0.73563688]
[1766174959994,1.72973604,856.32,854.97,0.73563688]
[1766174960194,1.72973604,856.26,854.98,0.73563688]
[1766174960391,1.72973604,856.26,854.99,0.73563688]
[1766174960595,1.72973604,856.26,855.0,0.73563688]
[1766174960792,1.72973604,856.26,854.78,0.86459558]
[1766174960793,1.72973604,856.26,855.01,0.73563688]
[1766174960992,1.72973604,856.26,855.02,0.73563688]
[1766174961191,1.72973604,856.26,855.03,0.73563688]
[1766174961396,1.72973604,856.26,855.04,0.73563688]
[1766174961595,1.72973604,856.26,855.05,0.73563688]
[1766174961793,1.72973604,856.26,854.77,0.86459558]
[1766174961996,1.72973604,856.26,854.78,0.73534495]
[1766174962192,1.72973604,856.26,854.79,0.73534495]
[1766174962396,1.72973604,856.26,854.8,0.73534495]
[1766174962691,1.72973604,856.26,854.81,0.73534495]
[1766174962894,1.72973604,856.26,854.82,0.73534495]
[1766174963095,1.72973604,856.26,854.83,0.73534495]
[1766174963296,1.72973604,856.26,854.84,0.73534495]
[1766174963492,1.72973604,856.26,854.85,0.73534495]
[1766174963695,1.72973604,856.26,854.86,0.73534495]
[1766174963895,1.72973604,856.26,854.87,0.73534495]
[1766174964101,1.72973604,856.26,854.88,0.73534495]
[1766174964400,1.72973604,856.26,854.89,0.73534495]
[1766174964597,1.72973604,856.26,854.9,0.73534495]
[1766174964795,1.72973604,856.26,854.91,0.73534495]
[1766174965100,1.72973604,856.26,854.92,0.73534495]
[1766174965299,1.72973604,856.26,854.93,0.73534495]
[1766174965600,1.72973604,856.26,854.94,0.73534495]
[1766174965796,1.72973604,856.26,854.95,0.73534495]
[1766174965995,1.72973604,856.26,854.77,0.86459558]
[1766174965996,1.72973604,856.26,854.96,0.73534495]
[1766174966197,1.72973604,856.26,854.97,0.73534495]
[1766174966396,1.72973604,856.26,854.98,0.73534495]
[1766174966599,1.72973604,856.26,854.99,0.73534495]
[1766174966798,1.72973604,856.26,855.0,0.73534495]
[1766174967096,1.72973604,856.26,855.01,0.73534495]
[1766174967300,1.72973604,856.27,855.02,0.73534495]
[1766174967500,1.72973604,856.27,855.03,0.73534495]
[1766174967697,1.72973604,856.27,855.04,0.73534495]
[1766174967896,1.72973604,856.27,854.77,0.86459558]
[1766174968100,1.72973604,856.27,854.78,0.73510561]
[1766174968297,1.72973604,856.27,854.79,0.73510561]
[1766174968497,1.72973604,856.27,854.8,0.73510561]
[1766174968798,1.72973604,856.27,854.81,0.73510561]
[1766174969002,1.72973604,856.27,854.82,0.73510561]
[1766174969202,1.72973604,856.27,854.83,0.73510561]
[1766174969501,1.72973604,856.27,854.84,0.73510561]
[1766174969698,1.72973604,856.27,854.85,0.73510561]
[1766174969902,1.72973604,856.27,854.86,0.73510561]
[1766174970203,1.72973604,856.33,854.87,0.73510561]
[1766174970403,1.72973604,856.33,854.88,0.73510561]
[1766174970598,1.72973604,856.33,854.89,0.73510561]
[1766174970798,1.72973604,856.33,854.9,0.73510561]
[1766174971003,1.72973604,856.33,854.91,0.73510561]
[1766174971203,1.72973604,856.33,854.92,0.73510561]
[1766174971402,1.72973604,856.33,854.93,0.73510561]
[1766174971603,1.72973604,856.33,854.94,0.73510561]
[1766174971800,1.72973604,856.33,854.95,0.73510561]
[1766174972104,1.72973604,856.33,854.96,0.73510561]
[1766174972404,1.72973604,856.33,854.97,0.73510561]
[1766174972603,1.72973604,856.33,854.98,0.73510561]
[1766174972801,1.72973604,856.33,854.99,0.73510561]
[1766174973004,1.72973604,856.33,855.0,0.73510561]
[1766174973198,1.72973604,856.33,855.01,0.73510561]
[1766174973401,1.72973604,856.33,855.02,0.73510561]
[1766174973599,1.72973604,856.33,855.03,0.73510561]
[1766174973903,1.72973604,856.33,855.04,0.73510561]
[1766174974101,1.72973604,856.33,855.05,0.73510561]
[1766174974301,1.72973604,856.34,855.06,0.73510561]
[1766174974506,1.72973604,856.34,855.07,0.73510561]
[1766174974701,1.72973604,856.34,855.08,0.73510561]
[1766174974904,1.72973604,856.34,855.09,0.73510561]
[1766174975101,1.72973604,856.34,855.1,0.73510561]
[1766174975304,1.72973604,856.34,855.11,0.73510561]
[1766174975504,1.72973604,856.34,854.83,0.86459558]
[1766174975702,1.72973604,856.34,854.84,0.73516215]
[1766174975906,1.72973604,856.34,854.85,0.73516215]
[1766174976103,1.72973604,856.34,854.86,0.73516215]
[1766174976302,1.72973604,856.34,854.87,0.73516215]
[1766174976503,1.72973604,856.34,854.88,0.73516215]
[1766174976804,1.72973604,856.34,854.83,0.86459558]
[1766174976805,1.72973604,856.34,854.89,0.73516215]
[1766174977008,1.72973604,856.34,854.9,0.73516215]
[1766174977203,1.72973604,856.33,854.91,0.73516215]
[1766174977404,1.72973604,856.33,854.92,0.73516215]
[1766174977607,1.72973604,856.33,854.93,0.73516215]
[1766174977806,1.72973604,856.33,854.94,0.73516215]
[1766174978008,1.72973604,856.33,854.95,0.73516215]
[1766174978205,1.72973604,856.31,854.96,0.73516215]
[1766174978408,1.72973604,856.31,854.97,0.73516215]
[1766174978607,1.72973604,856.31,854.98,0.73516215]
[1766174978805,1.72973604,856.31,854.99,0.73516215]
[1766174979006,1.72973604,856.31,855.0,0.73516215]
[1766174979206,1.72973604,856.31,855.01,0.73516215]
[1766174979508,1.72973604,856.3,855.02,0.73516215]
[1766174979809,1.72973604,856.3,855.03,0.73516215]
[1766174980110,1.72973604,856.27,855.04,0.73516215]
[1766174980310,1.72973604,856.26,855.05,0.73516215]
[1766174980506,1.72973604,856.26,855.06,0.73516215]
[1766174980808,1.72973604,856.26,855.07,0.73516215]
[1766174981110,1.72973604,856.26,855.08,0.73516215]
[1766174981307,1.72973604,856.25,855.09,0.73516215]
[1766174981505,1.72973604,856.25,855.1,0.73516215]
[1766174981709,1.72973604,856.25,855.11,0.73516215]
[1766174982005,1.72973604,856.25,855.12,0.73516215]
[1766174982309,1.72973604,856.24,855.13,0.73516215]
[1766174982511,1.72973604,856.24,855.14,0.73516215]
[1766174982711,1.72973604,856.24,854.87,0.86459558]
[1766174982909,1.72973604,856.24,854.88,0.73610397]
[1766174983211,1.72973604,856.24,854.89,0.73610397]
[1766174983408,1.72973604,856.24,854.9,0.73610397]
[1766174983611,1.72973604,856.24,854.91,0.73610397]
[1766174983807,1.72973604,856.24,854.92,0.73610397]
[1766174984012,1.72973604,856.24,854.93,0.73610397]
[1766174984206,1.72973604,856.23,854.94,0.73610397]
[1766174984411,1.72973604,856.23,854.95,0.73610397]
[1766174984611,1.72973604,856.23,854.88,0.86459558]
[1766174984612,1.72973604,856.23,854.96,0.73610397]
[1766174984911,1.72973604,856.23,854.97,0.73610397]
[1766174985111,1.72973604,856.23,854.98,0.73610397]
[1766174985312,1.72973604,856.22,854.99,0.73610397]
[1766174985512,1.72973604,856.1,855.0,0.73610397]
[1766174985711,1.72973604,856.1,855.01,0.73610397]
[1766174985908,1.72973604,856.1,855.02,0.73610397]
[1766174986108,1.72973604,856.1,854.77,0.86459558]
[1766174986412,1.72973604,855.87,854.78,0.73724069]
[1766174986612,1.72973604,855.87,854.55,0.86459558]
[1766174986613,1.72973604,856.03,854.79,0.73724069]
[1766174986812,1.72973604,856.03,854.8,0.73724069]
[1766174987110,1.72973604,856.03,854.81,0.73724069]
[1766174987312,1.72973604,856.02,854.82,0.73724069]
[1766174987511,1.72973604,856.02,854.83,0.73724069]
[1766174987710,1.72973604,856.02,854.84,0.73724069]
[1766174987908,1.72973604,856.02,854.85,0.73724069]
[1766174988111,1.72973604,856.02,854.86,0.73724069]
[1766174988308,1.72973604,856.02,854.87,0.73724069]
[1766174988508,1.72973604,856.02,854.88,0.73724069]
[1766174988713,1.72973604,856.02,854.89,0.73724069]
[1766174988911,1.72973604,856.02,854.9,0.73724069]
[1766174989110,1.72973604,856.02,854.91,0.73724069]
[1766174989314,1.72973604,856.09,854.92,0.73724069]
[1766174989613,1.72973604,856.09,854.93,0.73724069]
[1766174989813,1.72973604,856.09,854.94,0.73724069]
[1766174990011,1.72973604,856.09,854.95,0.73724069]
[1766174990212,1.72973604,856.1,854.96,0.73724069]
[1766174990413,1.72973604,856.11,854.97,0.73724069]
[1766174990613,1.72973604,856.1,854.98,0.73724069]
[1766174990813,1.72973604,856.1,854.83,0.86459558]
[1766174990814,1.72973604,856.1,854.99,0.73724069]
[1766174991016,1.72973604,856.1,855.0,0.73724069]
[1766174991215,1.72973604,856.09,855.01,0.73724069]
[1766174991415,1.72973604,856.09,855.02,0.73724069]
[1766174991615,1.72973604,856.09,855.03,0.73724069]
[1766174991818,1.72973604,856.09,855.04,0.73724069]
[1766174992015,1.72973604,856.09,855.05,0.73724069]
[1766174992315,1.72973604,856.07,855.06,0.73724069]
[1766174992515,1.72973604,856.07,855.07,0.73724069]
[1766174992717,1.72973604,856.07,855.08,0.73724069]
[1766174992918,1.72973604,856.07,855.09,0.73724069]
[1766174993118,1.72973604,856.07,855.1,0.73724069]
[1766174993419,1.72973604,856.08,855.11,0.73724069]
[1766174993619,1.72973604,856.08,855.12,0.73724069]
[1766174993819,1.72973604,856.08,855.13,0.73724069]
[1766174994019,1.72973604,856.08,854.86,0.86459558]
[1766174994218,1.72973604,856.08,854.87,0.7369806]
[1766174994417,1.72973604,856.08,854.88,0.7369806]
[1766174994617,1.72973604,856.08,854.89,0.7369806]
[1766174994817,1.72973604,856.08,854.9,0.7369806]
[1766174995016,1.72973604,856.08,854.91,0.7369806]
[1766174995220,1.72973604,856.08,854.92,0.7369806]
[1766174995415,1.72973604,856.08,854.93,0.7369806]
[1766174995622,1.72973604,856.08,854.94,0.7369806]
[1766174995917,1.72973604,856.08,854.95,0.7369806]
[1766174996121,1.72973604,856.08,854.96,0.7369806]
[1766174996319,1.72973604,856.08,854.97,0.7369806]
[1766174996519,1.72973604,856.08,854.98,0.7369806]
[1766174996718,1.72973604,856.08,854.99,0.7369806]
[1766174996918,1.72973604,856.08,855.0,0.7369806]
[1766174997118,1.72973604,856.08,855.01,0.7369806]
[1766174997419,1.72973604,856.08,855.02,0.7369806]
[1766174997621,1.72973604,856.08,855.03,0.7369806]
[1766174997820,1.72973604,856.08,855.04,0.7369806]
[1766174998022,1.72973604,856.08,855.05,0.7369806]
[1766174998220,1.72973604,856.08,855.06,0.7369806]
[1766174998524,1.72973604,856.08,855.07,0.7369806]
[1766174998821,1.72973604,856.08,855.08,0.7369806]
[1766174999018,1.72973604,856.08,855.09,0.7369806]
[1766174999223,1.72973604,856.09,855.1,0.7369806]
[1766174999421,1.72973604,856.09,855.11,0.7369806]
[1766174999622,1.72973604,856.09,855.12,0.7369806]
[1766174999824,1.72973604,856.09,854.85,0.86459558]
[1766175000121,1.72973604,856.0,854.86,0.73655528]
[1766175000325,1.72973604,856.0,854.87,0.73655528]
[1766175000521,1.72973604,856.0,854.88,0.73655528]
[1766175000720,1.72973604,856.0,854.89,0.73655528]
[1766175001022,1.72973604,856.0,854.9,0.73655528]
[1766175001224,1.72973604,856.0,854.91,0.73655528]
[1766175001524,1.72973604,856.0,854.92,0.73655528]
[1766175001722,1.72973604,856.0,854.93,0.73655528]
[1766175001921,1.72973604,856.0,854.94,0.73655528]
[1766175002119,1.72973604,856.0,854.76,0.86459558]
[1766175002120,1.72973604,856.0,854.95,0.73655528]
[1766175002323,1.72973604,856.0,854.96,0.73655528]
[1766175002522,1.72973604,856.0,854.97,0.73655528]
[1766175002726,1.72973604,856.0,854.98,0.73655528]
[1766175002922,1.72973604,856.04,854.99,0.73655528]
[1766175003121,1.72973604,856.05,855.0,0.73655528]
[1766175003322,1.72973604,856.11,855.01,0.73655528]
[1766175003522,1.72973604,856.11,855.02,0.73655528]
[1766175003726,1.72973604,856.11,855.03,0.73655528]
[1766175003924,1.72973604,856.11,855.04,0.73655528]
[1766175004123,1.72973604,856.11,855.05,0.73655528]
[1766175004324,1.72973604,856.11,855.06,0.73655528]
[1766175004626,1.72973604,856.11,855.07,0.73655528]
[1766175004824,1.72973604,856.11,855.08,0.73655528]
[1766175005023,1.72973604,856.11,855.09,0.73655528]
[1766175005227,1.72973604,856.0,854.76,0.86459558]
[1766175005422,1.72973604,855.96,854.77,0.73660588]
[1766175005628,1.72973604,855.95,854.78,0.73660588]
[1766175005828,1.72973604,855.95,854.79,0.73660588]
[1766175006028,1.72973604,855.95,854.8,0.73660588]
[1766175006224,1.72973604,855.95,854.81,0.73660588]
[1766175006428,1.72973604,855.96,854.82,0.73660588]
[1766175006626,1.72973604,855.96,854.72,0.86459558]
[1766175006627,1.72973604,855.95,854.83,0.73660588]
[1766175006825,1.72973604,855.95,854.84,0.73660588]
[1766175007028,1.72973604,855.95,854.85,0.73660588]
[1766175007229,1.72973604,855.95,854.86,0.73660588]
[1766175007430,1.72973604,855.96,854.87,0.73660588]
[1766175007626,1.72973604,855.96,854.88,0.73660588]
[1766175007827,1.72973604,855.96,854.89,0.73660588]
[1766175008133,1.72973604,855.96,854.9,0.73660588]
[1766175008334,1.72973604,855.96,854.91,0.73660588]
[1766175008628,1.72973604,855.96,854.92,0.73660588]
[1766175008830,1.72973604,855.96,854.93,0.73660588]
[1766175009031,1.72973604,855.96,854.94,0.73660588]
[1766175009231,1.72973604,855.96,854.95,0.73660588]
[1766175009527,1.72973604,855.96,854.96,0.73660588]
[1766175009727,1.72973604,855.96,854.97,0.73660588]
[1766175009931,1.72973604,855.96,854.98,0.73660588]
[1766175010129,1.72973604,856.04,854.99,0.73660588]
[1766175010329,1.72973604,856.04,855.0,0.73660588]
[1766175010629,1.72973604,856.04,854.8,0.86459558]
[1766175010630,1.72973604,855.9,854.66,0.86459558]
[1766175010835,1.72973604,855.9,854.67,0.7361066]
[1766175011031,1.72973604,855.9,854.68,0.7361066]
[1766175011231,1.72973604,855.9,854.69,0.7361066]
[1766175011536,1.72973604,855.91,854.7,0.7361066]
[1766175011736,1.72973604,855.91,854.71,0.7361066]
[1766175011935,1.72973604,855.91,854.72,0.7361066]
[1766175012137,1.72973604,855.91,854.73,0.7361066]
[1766175012435,1.72973604,855.92,854.74,0.7361066]
[1766175012633,1.72973604,855.92,854.75,0.7361066]
[1766175012932,1.72973604,855.92,854.76,0.7361066]
[1766175013136,1.72973604,855.92,854.77,0.7361066]
[1766175013337,1.72973604,855.92,854.78,0.7361066]
[1766175013537,1.72973604,855.92,854.79,0.7361066]
[1766175013736,1.72973604,855.93,854.8,0.7361066]
[1766175013934,1.72973604,855.93,854.81,0.7361066]
[1766175014234,1.72973604,855.93,854.82,0.7361066]
[1766175014434,1.72973604,855.93,854.83,0.7361066]
[1766175014633,1.72973604,855.93,854.84,0.7361066]
[1766175014837,1.72973604,855.96,854.85,0.7361066]
[1766175015035,1.72973604,855.96,854.86,0.7361066]
[1766175015238,1.72973604,855.96,854.87,0.7361066]
[1766175015440,1.72973604,856.04,854.88,0.7361066]
[1766175015638,1.72973604,856.04,854.89,0.7361066]
[1766175015834,1.72973604,856.04,854.9,0.7361066]
[1766175016039,1.72973604,856.04,854.91,0.7361066]
[1766175016334,1.72973604,856.04,854.92,0.7361066]
[1766175016537,1.72973604,856.04,854.93,0.7361066]
[1766175016739,1.72973604,856.04,854.94,0.7361066]
[1766175017037,1.72973604,856.04,854.95,0.7361066]
[1766175017341,1.72973604,856.04,854.74,0.86459558]
[1766175017342,1.72973604,856.04,854.96,0.7361066]
[1766175017639,1.72973604,856.04,854.97,0.7361066]
[1766175017835,1.72973604,856.04,854.98,0.7361066]
[1766175018141,1.72973604,856.04,854.99,0.7361066]
[1766175018335,1.72973604,856.04,854.74,0.86459558]
[1766175018640,1.72973604,855.98,854.75,0.73560368]
[1766175018840,1.72973604,855.98,854.76,0.73560368]
[1766175019036,1.72973604,855.98,854.77,0.73560368]
[1766175019241,1.72973604,855.98,854.78,0.73560368]
[1766175019437,1.72973604,855.98,854.68,0.86459558]
[1766175019438,1.72973604,855.98,854.79,0.73560368]
[1766175019643,1.72973604,855.98,854.8,0.73560368]
[1766175019843,1.72973604,855.98,854.81,0.73560368]
[1766175020042,1.72973604,855.98,854.82,0.73560368]
[1766175020244,1.72973604,855.91,854.83,0.73560368]
[1766175020441,1.72973604,855.91,854.84,0.73560368]
[1766175020644,1.72973604,855.91,854.85,0.73560368]
[1766175020845,1.72973604,855.91,854.86,0.73560368]
[1766175021043,1.72973604,855.91,854.87,0.73560368]
[1766175021344,1.72973604,855.91,854.45,1.13346959]
[1766175021345,1.72973604,855.92,854.59,0.86459558]
[1766175021640,1.72973604,855.91,854.6,0.73555064]
[1766175021841,1.72973604,855.73,854.61,0.73555064]
[1766175022046,1.72973604,855.73,854.62,0.73555064]
[1766175022243,1.72973604,855.73,854.63,0.73555064]
[1766175022539,1.72973604,855.73,854.42,0.20343382]
[1766175022540,1.72973604,855.75,854.64,0.73555064]
[1766175022840,1.72973604,855.75,854.65,0.73555064]
[1766175023044,1.72973604,855.75,854.66,0.73555064]
[1766175023241,1.72973604,855.75,854.42,0.20343382]
[1766175023443,1.72973604,855.76,854.43,0.73543481]